bitfinex/quotes_SOLUSD_20230104
["timestamp","ask_amount","ask_price","bid_price","bid_amount"]
[1672844940930,20.0,13.264,13.239,175.69126925]
[1672844941144,56.6,13.263,13.239,175.69126925]
[1672844941335,20.0,13.262,13.239,175.69126925]
[1672844941551,56.61,13.261,13.239,175.69126925]
[1672844941771,20.0,13.26,13.239,118.99126925]
[1672844942080,56.62,13.259,13.239,118.99126925]
[1672844942284,20.0,13.258,13.239,118.99126925]
[1672844942494,56.62,13.257,13.239,118.99126925]
[1672844942715,20.0,13.256,13.239,118.99126925]
[1672844943341,56.63,13.255,13.239,118.99126925]
[1672844943544,20.0,13.254,13.239,118.99126925]
[1672844943760,20.0,13.254,13.24,56.7]
[1672844944191,20.0,13.264,13.24,56.7]
[1672844944621,56.6,13.263,13.239,175.69126925]
[1672844944821,20.0,13.262,13.239,175.69126925]
[1672844945026,56.61,13.261,13.239,118.99126925]
[1672844945248,56.59,13.265,13.24,56.7]
[1672844946810,195.5438,13.266,13.24,56.7]
[1672844947447,20.0,13.265,13.24,56.7]
[1672844947646,56.59,13.264,13.239,116.86893925]
[1672844947866,20.0,13.263,13.239,116.86893925]
[1672844948082,56.6,13.262,13.239,116.86893925]
[1672844948280,20.0,13.261,13.239,173.56893925]
[1672844948508,56.61,13.26,13.239,173.56893925]
[1672844948701,20.0,13.259,13.239,173.56893925]
[1672844949453,20.0,13.264,13.239,116.86893925]
[1672844949644,56.6,13.263,13.239,173.56893925]
[1672844949854,20.0,13.262,13.239,116.86893925]
[1672844950065,56.61,13.261,13.239,116.86893925]
[1672844950279,20.0,13.26,13.239,116.86893925]
[1672844950494,56.62,13.259,13.239,116.86893925]
[1672844950705,20.0,13.258,13.239,116.86893925]
[1672844951343,20.0,13.261,13.239,116.86893925]
[1672844951543,56.61,13.26,13.239,116.86893925]
[1672844951741,20.0,13.259,13.239,116.86893925]
[1672844951953,56.62,13.258,13.239,116.86893925]
[1672844952163,22.5109,13.263,13.239,116.86893925]
[1672844952164,20.0,13.257,13.239,116.86893925]
[1672844952584,20.0,13.261,13.239,116.86893925]
[1672844952804,56.61,13.26,13.239,116.86893925]
[1672844953025,20.0,13.259,13.239,116.86893925]
[1672844953239,56.62,13.258,13.239,116.86893925]
[1672844953436,56.62,13.258,13.238,312.4541895]
[1672844955237,20.0,13.257,13.238,312.4541895]
[1672844955419,56.63,13.256,13.238,312.4541895]
[1672844955633,20.0,13.255,13.238,312.4541895]
[1672844955857,22.5109,13.263,13.238,287.4541895]
[1672844956386,22.5109,13.263,13.239,56.7]
[1672844957018,22.5109,13.263,13.238,287.4541895]
[1672844957211,76.6,13.262,13.238,287.4541895]
[1672844957542,20.0,13.262,13.239,56.7]
[1672844957742,56.61,13.261,13.239,56.7]
[1672844957952,20.0,13.26,13.239,56.7]
[1672844958162,20.0,13.262,13.239,56.7]
[1672844958371,22.5109,13.263,13.239,56.7]
[1672844959105,56.6,13.262,13.238,287.4541895]
[1672844959314,79.1109,13.263,13.238,287.4541895]
[1672844959853,20.0,13.262,13.238,287.4541895]
[1672844960068,56.61,13.261,13.238,287.4541895]
[1672844960273,20.0,13.26,13.238,287.4541895]
[1672844960476,56.62,13.259,13.238,287.4541895]
[1672844960680,20.0,13.258,13.238,287.4541895]
[1672844961013,56.62,13.257,13.238,287.4541895]
[1672844961229,20.0,13.256,13.238,287.4541895]
[1672844961424,56.63,13.255,13.238,164.6220039]
[1672844961628,20.0,13.254,13.238,164.6220039]
[1672844962042,20.0,13.261,13.238,164.6220039]
[1672844962267,56.61,13.26,13.238,164.6220039]
[1672844962467,20.0,13.259,13.238,164.6220039]
[1672844962676,56.62,13.258,13.238,164.6220039]
[1672844962882,20.0,13.257,13.238,164.6220039]
[1672844963099,56.63,13.256,13.238,164.6220039]
[1672844963325,20.0,13.255,13.238,164.6220039]
[1672844963536,56.64,13.254,13.238,164.6220039]
[1672844963726,20.0,13.253,13.238,164.6220039]
[1672844963933,56.65,13.252,13.238,164.6220039]
[1672844964151,20.0,13.251,13.238,164.6220039]
[1672844964793,20.0,13.261,13.238,164.6220039]
[1672844965104,56.61,13.26,13.238,164.6220039]
[1672844965298,56.6,13.262,13.238,139.6220039]
[1672844966262,56.6,13.262,13.239,56.7]
[1672844966576,22.5109,13.263,13.238,139.6220039]
[1672844966766,22.5109,13.263,13.239,56.7]
[1672844967604,22.5109,13.263,13.24,114.6457]
[1672844967817,22.5109,13.263,13.241,56.69]
[1672844969097,20.0,13.262,13.241,56.69]
[1672844970451,56.61,13.261,13.24,171.3457]
[1672844970670,20.0,13.26,13.24,114.6457]
[1672844971202,20.0,13.261,13.24,114.6457]
[1672844971810,56.61,13.26,13.24,114.6457]
[1672844972023,20.0,13.259,13.238,139.6220039]
[1672844972444,56.62,13.258,13.238,137.1220039]
[1672844972656,20.0,13.257,13.238,137.1220039]
[1672844973077,76.61,13.26,13.238,137.1220039]
[1672844973523,77.01579148,13.259,13.238,137.1220039]
[1672844973721,76.62,13.258,13.238,137.1220039]
[1672844973917,56.62,13.258,13.238,137.1220039]
[1672844974128,20.0,13.257,13.238,137.1220039]
[1672844974779,20.0,13.259,13.238,137.1220039]
[1672844974978,56.62,13.258,13.238,137.1220039]
[1672844975293,20.0,13.257,13.238,137.1220039]
[1672844975703,77.01579148,13.254,13.238,137.1220039]
[1672844975907,20.0,13.253,13.239,56.7]
[1672844976116,20.0,13.257,13.238,112.1220039]
[1672844976876,77.01579148,13.256,13.238,112.1220039]
[1672844977068,20.0,13.255,13.238,112.1220039]
[1672844977714,20.0,13.255,13.23,56.74]
[1672844977715,98.10675342,13.236,13.229,182.5968]
[1672844977919,20.0,13.235,13.22,23.6281]
[1672844978138,20.0,13.235,13.221,117.2075]
[1672844978330,20.0,13.235,13.229,20.18]
[1672844978561,20.0,13.235,13.222,20.19]
[1672844978771,20.0,13.235,13.229,20.18]
[1672844979422,98.10675342,13.236,13.229,20.18]
[1672844980361,94.32675342,13.236,13.229,20.18]
[1672844981191,20.0,13.235,13.229,20.18]
[1672844982339,94.32675342,13.236,13.229,20.18]
[1672844983711,109.25003699,13.237,13.229,20.18]
[1672844984141,96.49463699,13.237,13.229,20.18]
[1672844984769,44.2631,13.251,13.229,20.18]
[1672844984972,20.0,13.25,13.229,20.18]
[1672844985723,77.01579148,13.261,13.229,20.18]
[1672844985937,77.01579148,13.261,13.23,71.8537]
[1672844986129,77.01579148,13.26,13.231,23.77]
[1672844986558,77.01579148,13.262,13.231,23.77]
[1672844986876,77.01579148,13.258,13.231,23.77]
[1672844987085,20.0,13.257,13.231,23.77]
[1672844987299,78.52839034,13.263,13.231,23.77]
[1672844987610,4.06530771,13.268,13.231,23.77]
[1672844987611,4.06530771,13.268,13.232,33.95219]
[1672844987808,4.06530771,13.268,13.234,225.4]
[1672844988015,4.06530771,13.268,13.236,225.4]
[1672844988350,4.06530771,13.268,13.237,97.84475896]
[1672844988570,4.06530771,13.268,13.239,59.43443896]
[1672844988759,4.06530771,13.268,13.241,284.83443896]
[1672844988963,4.06530771,13.268,13.243,59.43443896]
[1672844989184,4.06530771,13.268,13.245,59.43443896]
[1672844989379,4.06530771,13.268,13.246,13.93744]
[1672844989804,4.06530771,13.268,13.247,59.43443896]
[1672844990008,4.06530771,13.268,13.248,13.93534]
[1672844990648,4.06530771,13.268,13.249,20.0]
[1672844990869,4.06530771,13.268,13.25,73.36766896]
[1672844991074,4.06530771,13.268,13.251,13.93218]
[1672844991277,4.06530771,13.268,13.252,284.83443896]
[1672844991492,4.06530771,13.268,13.253,33.93008]
[1672844991698,4.06530771,13.268,13.254,298.76346896]
[1672844991907,4.06530771,13.268,13.255,13.92798]
[1672844992114,4.06530771,13.268,13.256,59.43443896]
[1672844992325,4.06530771,13.268,13.257,13.92587]
[1672844993058,4.06530771,13.268,13.258,27.35]
[1672844993265,0.29430771,13.268,13.258,27.35]
[1672844994145,0.29430771,13.268,13.259,41.23344542]
[1672844994344,0.29430771,13.268,13.26,27.35]
[1672844997070,0.29430771,13.268,13.26,39.045981]
[1672845000976,0.29430771,13.268,13.26,11.695981]
[1672845003794,20.0,13.276,13.26,11.695981]
[1672845004330,20.0,13.276,13.261,13.92167]
[1672845005091,20.0,13.276,13.261,25.617651]
[1672845006347,20.0,13.276,13.261,11.695981]
[1672845006547,56.55,13.275,13.261,11.695981]
[1672845006755,20.0,13.274,13.261,11.695981]
[1672845006963,56.56,13.273,13.261,11.695981]
[1672845007176,20.0,13.272,13.261,11.695981]
[1672845007601,20.0,13.277,13.261,11.695981]
[1672845007928,56.54,13.276,13.261,11.695981]
[1672845008113,20.0,13.275,13.261,11.695981]
[1672845008322,56.55,13.274,13.261,11.695981]
[1672845008565,20.0,13.273,13.261,11.695981]
[1672845008761,56.56,13.272,13.261,11.695981]
[1672845009083,20.0,13.271,13.261,11.695981]
[1672845009272,56.57,13.27,13.261,11.695981]
[1672845009483,20.0,13.269,13.261,11.695981]
[1672845009692,56.58,13.268,13.261,11.695981]
[1672845010003,20.0,13.267,13.261,11.695981]
[1672845010228,56.59,13.266,13.261,11.695981]
[1672845010419,20.0,13.265,13.253,15.2279384]
[1672845010636,56.59,13.264,13.253,15.2279384]
[1672845012220,20.0,13.263,13.253,15.2279384]
[1672845012425,56.6,13.262,13.244,40.7583142]
[1672845012630,20.0,13.261,13.244,40.7583142]
[1672845012864,56.61,13.26,13.244,40.7583142]
[1672845013791,20.0,13.261,13.244,40.7583142]
[1672845014015,56.54,13.277,13.244,40.7583142]
[1672845014334,20.0,13.26,13.245,56.68]
[1672845014548,20.0,13.276,13.245,56.68]
[1672845014745,56.55,13.275,13.245,151.7893]
[1672845014956,20.0,13.274,13.245,151.7893]
[1672845015266,56.56,13.273,13.245,151.7893]
[1672845015488,20.0,13.272,13.245,151.7893]
[1672845015691,175.5099,13.271,13.245,151.7893]
[1672845015906,20.0,13.27,13.245,151.7893]
[1672845016866,76.57,13.27,13.245,151.7893]
[1672845017084,20.0,13.27,13.245,151.7893]
[1672845017286,76.57,13.27,13.245,151.7893]
[1672845018541,76.57,13.27,13.245,377.1893]
[1672845018858,20.0,13.27,13.245,151.7893]
[1672845019182,76.57,13.27,13.245,151.7893]
[1672845019390,20.0,13.27,13.245,151.7893]
[1672845020017,56.57,13.269,13.245,151.7893]
[1672845020230,20.0,13.268,13.245,151.7893]
[1672845020848,20.0,13.269,13.245,151.7893]
[1672845021175,56.58,13.268,13.245,151.7893]
[1672845021487,20.0,13.267,13.245,151.7893]
[1672845022096,20.0,13.269,13.245,151.7893]
[1672845022328,56.58,13.268,13.245,151.7893]
[1672845022521,20.0,13.267,13.245,151.7893]
[1672845022733,56.59,13.266,13.245,151.7893]
[1672845023051,20.0,13.265,13.245,151.7893]
[1672845023677,20.0,13.269,13.245,151.7893]
[1672845023908,56.58,13.268,13.245,151.7893]
[1672845024117,20.0,13.267,13.245,151.7893]
[1672845024635,20.0,13.269,13.245,151.7893]
[1672845025065,20.0,13.27,13.245,151.7893]
[1672845025275,20.0,13.27,13.245,377.1893]
[1672845025490,20.0,13.27,13.245,151.7893]
[1672845026638,20.0,13.27,13.245,377.1893]
[1672845027072,20.0,13.27,13.245,391.12779]
[1672845027885,20.0,13.27,13.246,13.93744]
[1672845028104,20.0,13.27,13.247,282.07]
[1672845028328,20.0,13.27,13.248,13.93534]
[1672845028636,20.0,13.27,13.249,282.06]
[1672845028853,20.0,13.27,13.25,13.93323]
[1672845029042,20.0,13.27,13.252,225.4]
[1672845029376,20.0,13.27,13.253,56.64]
[1672845031892,75.63058106,13.279,13.253,282.04]
[1672845032098,20.0,13.278,13.254,20.0]
[1672845032306,20.0,13.278,13.255,282.03]
[1672845033583,20.0,13.278,13.257,225.4]
[1672845033793,75.63058106,13.279,13.259,41.01824887]
[1672845034005,75.63058106,13.279,13.26,56.61]
[1672845034220,75.63058106,13.279,13.259,282.02]
[1672845034529,75.63058106,13.279,13.259,303.8011836]
[1672845034739,75.63058106,13.279,13.259,282.02]
[1672845034953,8.21058106,13.279,13.263,225.4]
[1672845035147,8.21058106,13.279,13.26,41.7811836]
[1672845035148,8.21058106,13.279,13.266,268.89811591]
[1672845035362,8.21058106,13.279,13.268,44.3801513]
[1672845035578,8.21058106,13.279,13.27,44.3801513]
[1672845035792,8.21058106,13.279,13.272,44.3801513]
[1672845035985,8.21058106,13.279,13.273,56.56]
[1672845036197,8.21058106,13.279,13.265,44.3801513]
[1672845036198,8.21058106,13.279,13.267,44.712379]
[1672845036423,8.21058106,13.279,13.268,56.58]
[1672845036621,8.21058106,13.279,13.269,44.712379]
[1672845036833,8.21058106,13.279,13.27,56.57]
[1672845037248,8.21058106,13.279,13.265,56.59]
[1672845037464,8.21058106,13.279,13.266,44.62530915]
[1672845037685,8.21058106,13.279,13.267,56.58]
[1672845037879,8.21058106,13.279,13.268,44.62530915]
[1672845038085,8.21058106,13.279,13.269,56.57]
[1672845038310,4.73290798,13.28,13.27,270.02530915]
[1672845038524,4.73290798,13.28,13.271,301.96]
[1672845038728,4.73290798,13.28,13.272,49.86965667]
[1672845038940,4.73290798,13.28,13.273,76.56]
[1672845039150,4.73290798,13.28,13.274,49.86965667]
[1672845039370,4.73290798,13.28,13.275,76.55]
[1672845040524,4.73290798,13.28,13.275,56.55]
[1672845040723,4.73290798,13.28,13.27,56.57]
[1672845042289,4.73290798,13.28,13.269,56.57]
[1672845043361,4.73290798,13.28,13.268,56.58]
[1672845043555,4.73290798,13.28,13.261,121.97224848]
[1672845043766,4.73290798,13.28,13.262,56.6]
[1672845044604,4.73290798,13.28,13.26,282.01]
[1672845045239,4.73290798,13.28,13.261,121.97224848]
[1672845045461,4.73290798,13.28,13.262,282.0]
[1672845046080,4.73290798,13.28,13.263,20.0]
[1672845046308,4.73290798,13.28,13.265,225.4]
[1672845046517,4.73290798,13.28,13.267,225.4]
[1672845046727,4.73290798,13.28,13.268,56.58]
[1672845046931,4.73290798,13.28,13.264,56.59]
[1672845047143,4.73290798,13.28,13.265,20.0]
[1672845047347,4.73290798,13.28,13.266,56.59]
[1672845048931,4.73290798,13.28,13.267,120.5652167]
[1672845049148,4.73290798,13.28,13.269,125.71965603]
[1672845049369,4.73290798,13.28,13.261,121.97224848]
[1672845049579,4.73290798,13.28,13.263,120.02586138]
[1672845049792,4.73290798,13.28,13.265,122.35513152]
[1672845050102,4.73290798,13.28,13.261,121.97224848]
[1672845050303,4.73290798,13.28,13.263,120.02586138]
[1672845050627,4.73290798,13.28,13.261,121.97224848]
[1672845050840,4.73290798,13.28,13.263,120.02586138]
[1672845051024,4.73290798,13.28,13.259,72.6194]
[1672845051025,4.73290798,13.28,13.265,122.35513152]
[1672845051238,4.73290798,13.28,13.259,72.6194]
[1672845051239,4.73290798,13.28,13.261,121.97224848]
[1672845051458,56.53,13.279,13.261,121.97224848]
[1672845051677,20.0,13.278,13.26,129.76769921]
[1672845051887,56.54,13.277,13.26,129.76769921]
[1672845052099,20.0,13.276,13.259,72.6194]
[1672845052415,56.55,13.275,13.256,56.63]
[1672845052628,56.55,13.275,13.252,225.4]
[1672845052629,20.0,13.274,13.252,225.4]
[1672845052818,129.0657,13.274,13.253,56.64]
[1672845053755,56.56,13.273,13.248,56.66]
[1672845053989,20.0,13.272,13.248,179.35040255]
[1672845054195,56.56,13.271,13.248,179.35040255]
[1672845054402,20.0,13.272,13.248,179.35040255]
[1672845054826,56.56,13.271,13.248,179.35040255]
[1672845055035,20.0,13.27,13.248,179.35040255]
[1672845055560,20.0,13.271,13.248,179.35040255]
[1672845055877,56.57,13.27,13.248,56.66]
[1672845056093,20.0,13.269,13.246,56.67]
[1672845056301,56.58,13.268,13.245,56.68]
[1672845056519,20.0,13.267,13.245,56.68]
[1672845056826,56.59,13.266,13.245,56.68]
[1672845057018,20.0,13.265,13.245,56.68]
[1672845057791,56.59,13.265,13.245,56.68]
[1672845058003,119.7139,13.266,13.245,56.68]
[1672845059242,56.59,13.265,13.244,97.4383142]
[1672845059662,20.0,13.264,13.244,97.4383142]
[1672845060291,56.6,13.263,13.244,97.4383142]
[1672845060505,20.0,13.262,13.244,97.4383142]
[1672845061153,20.0,13.264,13.244,97.4383142]
[1672845062187,20.0,13.265,13.244,97.4383142]
[1672845062623,76.59,13.265,13.244,97.4383142]
[1672845062943,76.59,13.265,13.244,40.7583142]
[1672845069144,56.59,13.265,13.244,40.7583142]
[1672845069339,119.7139,13.266,13.245,76.68]
[1672845071470,119.7139,13.266,13.246,38.47743675]
[1672845071775,119.7139,13.266,13.247,56.67]
[1672845072710,119.7139,13.266,13.246,56.67]
[1672845073454,119.7139,13.266,13.247,38.47743675]
[1672845073770,24.4412,13.272,13.248,56.66]
[1672845074080,20.0,13.271,13.248,56.66]
[1672845078612,20.0,13.271,13.247,56.67]
[1672845080395,56.57,13.27,13.247,56.67]
[1672845080720,20.0,13.269,13.247,56.67]
[1672845081115,20.0,13.27,13.247,56.67]
[1672845081328,56.57,13.269,13.247,56.67]
[1672845081547,56.57,13.269,13.244,40.7583142]
[1672845081548,56.57,13.269,13.244,97.4383142]
[1672845081768,138.7349,13.268,13.244,97.4383142]
[1672845081972,56.58,13.267,13.244,40.7583142]
[1672845082178,20.0,13.266,13.244,40.7583142]
[1672845082499,56.59,13.265,13.244,40.7583142]
[1672845082818,20.0,13.264,13.244,40.7583142]
[1672845083012,56.6,13.263,13.244,40.7583142]
[1672845083222,20.0,13.262,13.244,40.7583142]
[1672845083434,56.61,13.261,13.244,40.7583142]
[1672845083658,20.0,13.26,13.244,40.7583142]
[1672845083855,56.62,13.259,13.244,40.7583142]
[1672845084069,20.0,13.258,13.244,40.7583142]
[1672845084278,56.62,13.257,13.244,40.7583142]
[1672845084592,20.0,13.256,13.244,40.7583142]
[1672845084807,56.63,13.255,13.244,40.7583142]
[1672845085118,20.0,13.254,13.244,40.7583142]
[1672845085528,20.0,13.264,13.244,40.7583142]
[1672845085739,56.6,13.263,13.244,40.7583142]
[1672845085960,20.0,13.262,13.244,40.7583142]
[1672845086178,56.61,13.261,13.244,40.7583142]
[1672845086488,56.61,13.261,13.244,15.7583142]
[1672845086489,20.0,13.26,13.244,15.7583142]
[1672845086711,56.62,13.259,13.244,15.7583142]
[1672845088274,20.0,13.258,13.244,15.7583142]
[1672845088487,56.62,13.257,13.244,15.7583142]
[1672845088799,20.0,13.256,13.244,15.7583142]
[1672845089012,56.63,13.255,13.244,1.42e-05]
[1672845089218,20.0,13.254,13.244,1.42e-05]
[1672845089429,56.64,13.253,13.244,1.42e-05]
[1672845089652,20.0,13.252,13.233,2.9516802]
[1672845089844,56.65,13.251,13.233,2.9516802]
[1672845091101,56.59,13.265,13.233,2.9516802]
[1672845092158,20.0,13.264,13.233,2.9516802]
[1672845092371,56.6,13.263,13.233,2.9516802]
[1672845092573,20.0,13.262,13.233,2.9516802]
[1672845092785,79.7105,13.261,13.233,2.9516802]
[1672845092998,20.0,13.26,13.233,2.9516802]
[1672845093327,56.62,13.259,13.233,2.9516802]
[1672845093538,20.0,13.258,13.233,2.9516802]
[1672845093735,56.62,13.257,13.233,2.9516802]
[1672845094047,20.0,13.256,13.233,2.9516802]
[1672845094265,56.63,13.255,13.233,2.9516802]
[1672845094465,20.0,13.254,13.233,2.9516802]
[1672845094797,56.64,13.253,13.233,2.9516802]
[1672845095026,20.0,13.252,13.233,2.9516802]
[1672845095236,56.65,13.251,13.233,2.9516802]
[1672845095447,20.0,13.25,13.233,2.9516802]
[1672845095642,56.66,13.249,13.233,2.9516802]
[1672845095973,20.0,13.248,13.233,2.9516802]
[1672845096173,56.67,13.247,13.233,2.9516802]
[1672845096373,20.0,13.246,13.233,2.9516802]
[1672845096579,56.68,13.245,13.233,2.9516802]
[1672845096790,20.0,13.244,13.233,2.9516802]
[1672845097004,56.68,13.243,13.233,2.9516802]
[1672845097217,20.0,13.242,13.233,2.9516802]
[1672845097445,56.69,13.241,13.233,2.9516802]
[1672845097642,20.0,13.24,13.233,2.9516802]
[1672845097854,56.7,13.239,13.233,2.9516802]
[1672845098168,20.0,13.238,13.233,2.9516802]
[1672845098705,20.0,13.252,13.233,2.9516802]
[1672845098894,56.65,13.251,13.233,2.9516802]
[1672845099105,20.0,13.25,13.233,2.9516802]
[1672845099316,56.66,13.249,13.233,2.9516802]
[1672845099527,20.0,13.248,13.233,2.9516802]
[1672845099859,56.67,13.247,13.233,2.9516802]
[1672845100074,20.0,13.246,13.233,2.9516802]
[1672845100279,56.68,13.245,13.233,2.9516802]
[1672845100492,20.0,13.244,13.233,2.9516802]
[1672845100699,56.68,13.243,13.233,2.9516802]
[1672845100916,20.0,13.242,13.233,2.9516802]
[1672845101423,56.69,13.241,13.233,2.9516802]
[1672845101625,20.0,13.24,13.233,2.9516802]
[1672845102280,20.0,13.252,13.233,2.9516802]
[1672845102503,56.65,13.251,13.233,2.9516802]
[1672845102704,20.0,13.25,13.233,2.9516802]
[1672845102896,56.66,13.249,13.233,2.9516802]
[1672845103230,20.0,13.248,13.233,2.9516802]
[1672845103424,56.67,13.247,13.233,2.9516802]
[1672845103643,20.0,13.246,13.233,2.9516802]
[1672845103867,56.68,13.245,13.233,2.9516802]
[1672845104055,20.0,13.244,13.233,2.9516802]
[1672845104260,56.68,13.243,13.233,2.9516802]
[1672845104471,20.0,13.242,13.233,2.9516802]
[1672845104682,56.69,13.241,13.233,2.9516802]
[1672845105204,20.0,13.24,13.233,2.9516802]
[1672845105415,56.7,13.239,13.233,2.9516802]
[1672845105625,20.0,13.238,13.233,2.9516802]
[1672845105853,56.71,13.237,13.233,2.9516802]
[1672845106049,20.0,13.236,13.233,2.9516802]
[1672845106258,56.72,13.235,13.233,2.9516802]
[1672845106479,20.0,13.234,13.233,2.9516802]
[1672845108893,2.9516802,13.225,13.223,8.2101499]
[1672845109123,2.9516802,13.225,13.223,4.99e-05]
[1672845109323,2.9516802,13.225,13.214,70.7937]
[1672845109640,2.9516802,13.225,13.21,4.99e-05]
[1672845111201,2.9516802,13.225,13.219,35.5850286]
[1672845111202,59.7116802,13.225,13.219,35.5850286]
[1672845113193,20.0,13.224,13.219,35.5850286]
[1672845113410,2.9516802,13.225,13.219,35.5850286]
[1672845114577,2.9516802,13.225,13.22,56.78]
[1672845115847,24.5539,13.236,13.22,56.78]
[1672845116249,165.1509,13.253,13.22,56.78]
[1672845116454,56.64,13.253,13.22,282.18]
[1672845116672,56.57,13.27,13.221,316.5173]
[1672845116881,56.57,13.27,13.222,70.73274]
[1672845117538,56.57,13.27,13.222,56.77]
[1672845117755,56.56,13.271,13.222,56.77]
[1672845117939,20.0,13.27,13.222,56.77]
[1672845118151,56.57,13.269,13.222,56.77]
[1672845118359,20.0,13.268,13.222,56.77]
[1672845118592,105.8513,13.267,13.222,56.77]
[1672845118788,20.0,13.266,13.222,56.77]
[1672845119009,79.7464,13.265,13.222,56.77]
[1672845119211,20.0,13.264,13.222,56.77]
[1672845119421,213.0007,13.263,13.222,56.77]
[1672845119629,20.0,13.262,13.223,20.0]
[1672845119840,56.61,13.261,13.224,56.77]
[1672845120051,80.0356,13.261,13.225,20.0]
[1672845120257,80.0356,13.261,13.226,56.76]
[1672845120472,80.0356,13.261,13.227,71.1138]
[1672845120782,80.0356,13.261,13.228,56.75]
[1672845120986,80.0356,13.261,13.228,172.446]
[1672845122691,20.0,13.26,13.228,172.446]
[1672845123004,56.62,13.259,13.228,172.446]
[1672845123213,20.0,13.258,13.228,172.446]
[1672845123947,20.0,13.259,13.228,172.446]
[1672845124474,76.61,13.26,13.228,172.446]
[1672845127714,46.4958,13.259,13.228,115.696]
[1672845127923,76.62,13.258,13.228,115.696]
[1672845128139,76.62,13.258,13.228,172.446]
[1672845128982,76.62,13.258,13.228,115.696]
[1672845129815,76.62,13.258,13.221,56.78]
[1672845130034,76.62,13.258,13.22,79.4523]
[1672845131072,76.62,13.258,13.22,22.6723]
[1672845134996,76.62,13.258,13.22,79.4523]
[1672845136464,76.62,13.258,13.22,150.8792]
[1672845136684,76.62,13.258,13.22,94.0992]
[1672845138755,76.62,13.258,13.22,150.8792]
[1672845139070,115.51750797,13.258,13.22,94.0992]
[1672845139285,76.62,13.258,13.22,94.0992]
[1672845140341,76.62,13.258,13.221,56.78]
[1672845143171,76.62,13.258,13.22,264.7517]
[1672845143501,115.51750797,13.258,13.22,264.7517]
[1672845143713,38.89750797,13.256,13.22,264.7517]
[1672845143915,237.766,13.255,13.22,264.7517]
[1672845144650,24.4597,13.254,13.22,264.7517]
[1672845144858,76.64,13.253,13.22,264.7517]
[1672845145603,56.64,13.253,13.22,264.7517]
[1672845146557,81.0997,13.254,13.22,264.7517]
[1672845146967,20.0,13.253,13.22,490.1517]
[1672845147383,24.4597,13.254,13.22,264.7517]
[1672845147820,81.0997,13.254,13.22,264.7517]
[1672845148232,24.4597,13.254,13.22,264.7517]
[1672845148438,24.4597,13.254,13.22,490.1517]
[1672845148651,20.0,13.253,13.22,264.7517]
[1672845149091,23.9529,13.259,13.22,264.7517]
[1672845149283,23.9529,13.259,13.221,20.0]
[1672845149614,23.9529,13.259,13.223,225.4]
[1672845149822,23.9529,13.259,13.224,99.4218]
[1672845150016,23.9529,13.259,13.224,324.8218]
[1672845150231,23.9529,13.259,13.225,13.95957]
[1672845150553,23.9529,13.259,13.226,282.16]
[1672845150770,23.9529,13.259,13.228,225.4]
[1672845150976,23.9529,13.259,13.229,341.03085]
[1672845151190,23.9529,13.259,13.23,13.95429]
[1672845151401,56.57,13.27,13.231,101.2368]
[1672845151716,56.57,13.27,13.232,43.61463915]
[1672845151904,56.57,13.27,13.233,104.843]
[1672845152116,56.57,13.27,13.234,20.0]
[1672845152341,56.57,13.27,13.235,56.72]